bitfinex-derivatives/quotes_SOLF0:USTF0_20241231
["timestamp","ask_amount","ask_price","bid_price","bid_amount"]
[1735610362844,2.6442,189.43,189.4,7.69886235]
[1735610363047,2.6442,189.43,189.42,7.69886235]
[1735610364353,2.6439,189.45,189.42,7.69886235]
[1735610365053,2.6439,189.44,189.42,7.69886235]
[1735610366551,2.6441,189.43,189.42,7.69886235]
[1735610374164,3.21980331,189.47,189.42,7.69886235]
[1735610374165,2.644,189.44,189.42,7.69886235]
[1735610374474,2.644,189.44,189.43,7.69886235]
[1735610374667,7.69886235,189.45,189.19,209.83337562]
[1735610374870,7.69886235,189.33,189.25,9.25166235]
[1735610375066,10.89886235,189.33,189.25,9.25166235]
[1735610375263,2.6463,189.27,189.26,7.35075131]
[1735610375468,2.5113,189.43,189.26,7.35075131]
[1735610375665,2.6463,189.27,189.26,7.35075131]
[1735610375866,2.6463,189.27,189.26,15.04961366]
[1735610376274,2.6463,189.27,189.26,7.69886235]
[1735610377666,32.48163241,189.34,189.26,7.69886235]
[1735610378371,10.85396235,189.34,189.26,7.69886235]
[1735610379067,7.69886235,189.32,189.26,7.69886235]
[1735610379273,7.69886235,189.32,189.25,1.5528]
[1735610379472,3.1551,189.34,189.25,1.5528]
[1735610379675,2.6463,189.27,189.25,1.5528]
[1735610381368,7.69886235,189.31,189.25,1.5528]
[1735610381677,2.6464,189.26,189.24,10.89886235]
[1735610381876,2.6464,189.26,189.22,7.69886235]
[1735610382269,2.6467,189.25,189.2,3.2]
[1735610382774,2.6467,189.25,189.22,7.69886235]
[1735610382973,2.6469,189.23,189.19,3.1552]
[1735610383171,7.69886235,189.27,189.2,7.69886235]
[1735610383374,7.69886235,189.25,189.19,1.5967]
[1735610385674,2.6472,189.21,189.19,1.5967]
[1735610386075,2.6472,189.21,189.18,7.69886235]
[1735610389779,3.2,189.29,189.2,7.69886235]
[1735610389978,10.89886235,189.29,189.22,7.69886235]
[1735610390386,7.69886235,189.27,189.2,7.69886235]
[1735610390680,7.69886235,189.25,189.19,7.69886235]
[1735610392483,2.6471,189.22,189.19,7.69886235]
[1735610397383,2.6468,189.24,189.21,7.69886235]
[1735610400283,3.1551,189.34,189.23,7.69886235]
[1735610400284,2.6465,189.26,189.23,7.69886235]
[1735610400678,7.69886235,189.28,189.23,7.69886235]
[1735610400877,7.69886235,189.28,189.21,7.69886235]
[1735610402086,7.69886235,189.26,189.19,7.69886235]
[1735610402481,2.6469,189.23,189.19,7.69886235]
[1735610402882,7.69886235,189.26,189.19,7.69886235]
[1735610403587,2.6473,189.21,189.15,4.1563]
[1735610403785,7.69886235,189.22,189.15,9.20716235]
[1735610404185,2.6477,189.17,189.15,1.5083]
[1735610404887,2.6476,189.18,189.15,1.5083]
[1735610405784,7.69886235,189.22,189.15,1.5083]
[1735610405981,1.4762,189.24,189.15,1.5083]
[1735610405982,9.17506235,189.24,189.15,1.5083]
[1735610406188,7.69886235,189.22,189.15,9.20716235]
[1735610406387,2.6473,189.2,189.15,9.20716235]
[1735610406589,7.69886235,189.22,189.15,9.20716235]
[1735610407691,10.68746235,189.24,189.17,7.69886235]
[1735610408593,2.647,189.22,189.17,7.69886235]
[1735610408993,10.68746235,189.24,189.17,7.69886235]
[1735610410091,2.6472,189.21,189.17,7.69886235]
[1735610410689,7.69886235,189.24,189.17,7.69886235]
[1735610410894,7.69886235,189.27,189.19,7.69886235]
[1735610411291,2.6468,189.24,189.19,7.69886235]
[1735610411489,7.69886235,189.27,189.19,7.69886235]
[1735610411888,2.6469,189.23,189.19,7.69886235]
[1735610413290,7.69886235,189.27,189.19,7.69886235]
[1735610413492,2.647,189.22,189.19,7.69886235]
[1735610414297,7.69886235,189.25,189.17,7.69886235]
[1735610414496,2.6474,189.2,189.17,7.69886235]
[1735610414696,7.69886235,189.23,189.17,7.69886235]
[1735610415896,7.69886235,189.23,189.15,9.20716235]
[1735610416798,2.6474,189.19,189.15,9.20716235]
[1735610419300,2.6476,189.18,189.15,9.20716235]
[1735610419600,10.89886235,189.23,189.15,9.20716235]
[1735610419800,2.6475,189.19,189.17,7.69886235]
[1735610420596,7.69886235,189.23,189.17,7.69886235]
[1735610421202,2.6475,189.19,189.17,7.69886235]
[1735610423907,2.6472,189.21,189.17,7.69886235]
[1735610424103,7.69886235,189.25,189.19,7.69886235]
[1735610424604,2.6472,189.21,189.19,7.69886235]
[1735610427518,2.647,189.22,189.19,7.69886235]
[1735610427701,7.69886235,189.25,189.19,7.69886235]
[1735610429408,2.6471,189.21,189.19,7.69886235]
[1735610431906,7.69886235,189.25,189.19,7.69886235]
[1735610433206,2.6472,189.21,189.19,7.69886235]
[1735610433402,24.80767006,189.26,189.19,7.69886235]
[1735610433403,21.62767006,189.26,189.19,7.69886235]
[1735610433706,21.62767006,189.26,189.21,7.69886235]
[1735610434307,29.32653241,189.26,189.19,7.69886235]
[1735610435019,7.69886235,189.26,189.19,7.69886235]
[1735610435709,2.6471,189.22,189.19,7.69886235]
[1735610435911,7.69886235,189.26,189.19,7.69886235]
[1735610436105,11.67093461,189.26,189.19,7.69886235]
[1735610436609,7.69886235,189.26,189.19,7.69886235]
[1735610437310,29.32653241,189.26,189.19,7.69886235]
[1735610437511,2.6471,189.22,189.19,7.69886235]
[1735610441706,2.6472,189.21,189.19,7.69886235]
[1735610442213,2.6473,189.2,189.19,7.69886235]
[1735610445516,7.69886235,189.22,189.17,3.18]
[1735610445715,7.69886235,189.22,189.15,9.20716235]
[1735610445914,2.6478,189.17,189.15,9.20716235]
[1735610446216,7.69886235,189.22,189.15,9.20716235]
[1735610446512,2.648,189.15,189.13,7.69886235]
[1735610447412,2.6481,189.14,189.13,7.69886235]
[1735610451635,3.18,189.22,189.13,7.69886235]
[1735610451836,7.69886235,189.21,189.13,7.69886235]
[1735610452335,2.6481,189.14,189.13,7.69886235]
[1735610455233,2.6481,189.14,189.08,4.4585]
[1735610455234,2.6483,189.13,189.08,4.4585]
[1735610455437,2.6483,189.13,189.11,7.69886235]
[1735610455637,10.87886235,189.17,189.11,7.69886235]
[1735610456136,10.87886235,189.17,189.06,3.18]
[1735610456333,7.69886235,189.15,189.09,7.69886235]
[1735610457435,10.87886235,189.17,189.09,7.69886235]
[1735610458235,7.69886235,189.15,189.09,7.69886235]
[1735610458535,7.69886235,189.11,189.02,3.1615]
[1735610458737,2.6495,189.04,189.01,7.69886235]
[1735610460536,2.6494,189.06,189.01,7.69886235]
[1735610460738,10.87886235,189.09,189.03,7.69886235]
[1735610460939,2.649,189.08,189.03,7.69886235]
[1735610461342,3.18,189.09,189.03,7.69886235]
[1735610461644,2.649,189.08,189.03,7.69886235]
[1735610464139,12.45846235,189.11,189.03,7.69886235]
[1735610464342,21.62767006,189.15,188.98,1.5464]
[1735610464343,21.62767006,189.15,189.07,7.69886235]
[1735610464544,34.04273241,189.16,189.09,7.69886235]
[1735610464941,2.6483,189.13,189.09,7.69886235]
[1735610465946,2.6483,189.13,189.11,7.69886235]
[1735610466343,2.648,189.16,189.11,7.69886235]
[1735610466544,21.62767006,189.22,189.14,7.69886235]
[1735610466745,3.18,189.22,189.16,7.69886235]
[1735610467241,2.6473,189.21,189.16,7.69886235]
[1735610467539,3.18,189.22,189.16,7.69886235]
[1735610468139,7.69886235,189.17,188.96,29.22183408]
[1735610468443,1.568,189.23,188.99,7.69886235]
[1735610468444,7.69886235,189.05,188.99,7.69886235]
[1735610468635,3.18,189.06,188.99,7.69886235]
[1735610468840,2.6496,189.04,188.99,7.69886235]
[1735610469148,7.69886235,189.05,188.97,9.18156235]
[1735610469444,3.18,189.06,188.97,9.18156235]
[1735610469647,7.69886235,189.04,188.97,9.18156235]
[1735610469944,2.6501,189.0,188.97,7.69886235]
[1735610470240,3.18,189.06,188.96,7.69886235]
[1735610470447,7.69886235,189.05,188.98,7.69886235]
[1735610471446,2.6499,189.02,188.98,7.69886235]
[1735610471847,3.18,189.06,189.0,7.69886235]
[1735610472148,7.69886235,189.05,188.98,7.69886235]
[1735610472346,3.18,189.06,188.95,12.11951985]
[1735610472557,2.6488,189.1,189.02,2.6498]
[1735610472850,21.9767806,189.15,189.05,12.11951985]
[1735610473650,4.682,189.16,189.05,12.11951985]
[1735610474043,2.6487,189.1,189.05,12.11951985]
[1735610474647,4.682,189.16,189.05,12.11951985]
[1735610474845,0.8168532,189.15,189.05,12.11951985]
[1735610475350,2.649,189.08,189.05,12.11951985]
[1735610475949,2.6492,189.07,189.03,6.2865]
[1735610478250,4.682,189.16,189.03,6.2865]
[1735610478446,2.649,189.09,189.03,6.2865]
[1735610478746,4.682,189.16,189.03,6.2865]
[1735610478947,2.649,189.08,189.03,6.2865]
[1735610483355,3.0934,189.16,189.05,12.11951985]
[1735610484560,2.6486,189.11,189.05,14.76871985]
[1735610485248,12.11951985,189.1,188.91,48.18547669]
[1735610485453,12.11951985,189.07,188.93,12.11951985]
[1735610485655,4.7364,189.06,188.93,12.11951985]
[1735610485862,4.7364,189.06,188.93,41.34135393]
[1735610486757,12.11951985,189.04,188.93,41.34135393]
[1735610486957,12.11951985,189.04,188.93,44.52135393]
[1735610487155,12.11951985,189.04,188.93,15.29951985]
[1735610487354,2.6505,188.97,188.93,15.29951985]
[1735610487857,2.6505,188.97,188.92,4.7961]
[1735610488655,12.11951985,189.04,188.92,4.7961]
[1735610488856,2.6507,188.96,188.92,4.7961]
[1735610489263,2.6507,188.96,188.92,3.1785]
[1735610491161,15.29951985,189.01,188.91,40.88001817]
[1735610491357,12.11951985,188.98,188.87,12.11951985]
[1735610493365,2.6508,188.95,188.87,12.11951985]
[1735610493563,12.11951985,188.98,188.87,12.11951985]
[1735610493758,3.1247,189.0,188.87,14.77131985]
[1735610494057,2.6507,188.96,188.9,12.11951985]
[1735610497263,2.6508,188.95,188.9,12.11951985]
[1735610498862,1.6196,189.0,188.84,3.1735]
[1735610499066,2.6513,188.92,188.88,12.11951985]
[1735610499768,1.6196,189.0,188.88,12.11951985]
[1735610499969,2.651,188.94,188.88,12.11951985]
[1735610500664,2.6511,188.93,188.88,12.11951985]
[1735610503370,4.7996,189.0,188.88,12.11951985]
[1735610503575,2.6513,188.92,188.88,12.11951985]
[1735610504272,2.6513,188.92,188.88,14.77121985]
[1735610505976,2.6511,188.93,188.88,14.77121985]
[1735610506174,2.6511,188.93,188.91,12.11951985]
[1735610507671,2.6512,188.92,188.91,12.11951985]
[1735610508776,1.6196,189.0,188.91,12.11951985]
[1735610508974,0.81426079,188.99,188.91,12.11951985]
[1735610509270,1.6196,189.0,188.91,12.11951985]
[1735610509575,2.6505,188.98,188.91,12.11951985]
[1735610509778,1.6196,189.0,188.91,12.11951985]
[1735610510877,2.6509,188.95,188.91,12.11951985]
[1735610511073,2.6509,188.95,188.88,2.6517]
[1735610511274,2.6509,188.95,188.89,12.11951985]
[1735610512975,1.6196,189.0,188.89,12.11951985]
[1735610513176,2.651,188.94,188.89,12.11951985]
[1735610515878,1.6196,189.0,188.89,12.11951985]
[1735610516078,2.6511,188.93,188.89,12.11951985]
[1735610518274,2.6511,188.93,188.92,7.76178625]
[1735610521083,2.6518,188.88,188.86,3.18]
[1735610521281,2.6518,188.88,188.87,7.76178625]
[1735610524971,2.6514,188.91,188.87,10.41368625]
[1735610525177,2.6514,188.91,188.9,7.76178625]
[1735610525887,2.6512,188.93,188.9,7.76178625]
[1735610526177,2.6512,188.93,188.92,7.76178625]
[1735610526781,2.6509,188.94,188.92,7.76178625]
[1735610527780,2.6508,188.95,188.92,7.76178625]
[1735610531985,2.651,188.94,188.92,7.76178625]
[1735610535783,7.76178625,188.98,188.87,3.18]
[1735610535985,7.76178625,188.98,188.9,7.76178625]
[1735610536380,7.76178625,188.98,188.92,7.76178625]
[1735610536585,29.66996193,188.98,188.92,7.76178625]
[1735610537492,2.6509,188.95,188.92,7.76178625]
[1735610540089,2.6509,188.95,188.87,3.18]
[1735610540090,2.6509,188.95,188.94,7.76178625]
[1735610541792,2.6507,188.96,188.94,7.76178625]
[1735610543092,12.56138625,189.0,188.94,7.76178625]
[1735610543294,2.6508,188.95,188.94,7.76178625]
[1735610544495,12.56138625,189.0,188.94,7.76178625]
[1735610545688,2.6506,188.97,188.94,7.76178625]
[1735610545885,2.6506,188.97,188.87,3.18]
[1735610545886,21.90817568,189.01,188.96,7.76178625]
[1735610546193,21.90817568,189.01,189.0,7.76178625]
[1735610547396,8.24177568,189.05,188.94,3.1751]
[1735610547699,8.24177568,189.05,189.02,7.76178625]
[1735610548795,2.6496,189.04,189.02,7.76178625]
[1735610551200,2.6494,189.05,189.02,7.76178625]
[1735610551403,2.6494,189.05,189.04,7.76178625]
[1735610553807,1.6023,189.12,189.04,7.76178625]
[1735610554008,1.6023,189.12,189.08,7.76178625]
[1735610554208,2.6487,189.1,189.08,7.76178625]
[1735610558310,2.6484,189.13,189.08,7.76178625]
[1735610558511,2.6484,189.13,189.11,7.76178625]
[1735610558907,2.42757305,189.15,189.11,7.76178625]
[1735610559109,5.07557305,189.15,189.13,7.76178625]
[1735610559310,2.42757305,189.15,189.13,7.76178625]
[1735610560020,2.6481,189.14,189.13,7.76178625]
[1735610560719,2.6479,189.16,189.13,7.76178625]
[1735610561014,58.42180183,189.22,189.15,7.76178625]
[1735610561210,58.42180183,189.22,189.19,7.76178625]
[1735610561410,2.6471,189.21,189.19,7.76178625]
[1735610561913,2.647,189.22,189.19,7.76178625]
[1735610562111,2.647,189.22,189.21,7.76178625]
[1735610563418,7.76178625,189.31,189.21,10.94178625]
[1735610563624,7.76178625,189.31,189.26,7.76178625]
[1735610564414,2.646,189.3,189.26,7.76178625]
[1735610564716,7.76178625,189.31,189.26,7.76178625]
[1735610566319,2.6458,189.31,189.26,7.76178625]
[1735610566520,1.5096,189.33,189.26,7.76178625]
[1735610568117,1.5096,189.33,189.28,7.76178625]
[1735610569021,2.646,189.29,189.28,7.76178625]
[1735610571522,1.5096,189.33,189.28,7.76178625]
[1735610572414,2.646,189.29,189.28,7.76178625]
[1735610579422,2.6463,189.28,189.25,3.18]
[1735610579625,7.76178625,189.32,189.2,3.0196]
[1735610579926,1.5096,189.33,189.29,7.76178625]
[1735610581427,2.6459,189.3,189.29,7.76178625]
[1735610583822,1.5096,189.33,189.29,7.76178625]
[1735610584025,3.49512739,189.35,189.31,7.76178625]
[1735610584223,3.49512739,189.35,189.34,7.76178625]
[1735610584535,1.4828,189.4,189.34,7.76178625]
[1735610584827,1.4828,189.4,189.31,3.18]
[1735610584828,1.4828,189.4,189.36,7.76178625]
[1735610585132,7.76178625,189.45,189.38,7.76178625]
[1735610585330,1.5852,189.47,189.4,7.76178625]
[1735610585932,2.6443,189.42,189.4,7.76178625]
[1735610587127,2.6443,189.41,189.4,7.76178625]
[1735610590438,2.6449,189.37,189.3,2.6459]
[1735610590629,2.6449,189.37,189.36,7.76178625]
[1735610591028,2.6453,189.35,189.21,1.92371897]
[1735610591228,7.76178625,189.4,189.32,7.76178625]
[1735610591733,2.6454,189.34,189.29,3.18]
[1735610592041,2.6454,189.34,189.32,7.76178625]
[1735610592330,2.645,189.37,189.32,7.76178625]
[1735610592638,7.76178625,189.4,189.29,3.18]
[1735610592934,2.6451,189.36,189.33,7.76178625]
[1735610593735,7.76178625,189.41,189.33,7.76178625]
[1735610593937,2.6453,189.35,189.33,7.76178625]
[1735610596037,2.6453,189.34,189.33,7.76178625]
[1735610599437,21.67698533,189.48,189.33,7.76178625]
[1735610599640,21.67698533,189.48,189.47,7.76178625]
[1735610600136,21.67698533,189.49,189.47,7.76178625]
[1735610600439,21.67698533,189.49,189.48,7.76178625]
[1735610601033,21.67698533,189.49,189.41,1.5176]
[1735610601239,21.67698533,189.49,189.46,7.76178625]
[1735610601542,2.6435,189.47,189.46,7.76178625]
[1735610605138,2.6441,189.43,189.4,3.18]
[1735610605341,10.94178625,189.48,189.34,4.7565]
[1735610605540,7.76178625,189.46,189.38,7.76178625]
[1735610605742,7.76178625,189.44,189.38,7.76178625]
[1735610605942,2.6449,189.37,189.36,7.76178625]
[1735610606941,2.6448,189.38,189.36,7.76178625]
[1735610608342,2.6448,189.38,189.34,12.07041181]
[1735610610043,4.5888,189.47,189.34,12.07041181]
[1735610610349,4.5888,189.47,189.4,12.07041181]
[1735610611344,2.6439,189.45,189.4,12.07041181]
[1735610611545,4.5888,189.47,189.4,12.07041181]
[1735610612441,2.644,189.44,189.4,12.07041181]
[1735610614246,3.18,189.44,189.37,12.07041181]
[1735610614748,2.6447,189.39,189.37,12.07041181]
[1735610615356,3.18,189.42,189.37,12.07041181]
[1735610615554,2.6448,189.38,189.37,12.07041181]
[1735610620056,2.6446,189.4,189.37,12.07041181]
[1735610620253,3.18,189.45,189.37,12.07041181]
[1735610620453,3.18,189.45,189.4,12.07041181]
[1735610620654,2.6438,189.45,189.4,12.07041181]
[1735610620854,21.67698533,189.48,189.4,12.07041181]
[1735610621059,24.85698533,189.48,189.4,12.07041181]
[1735610621254,3.18,189.48,189.4,12.07041181]
[1735610621454,2.644,189.44,189.4,12.07041181]
[1735610621655,3.18,189.48,189.4,12.07041181]
[1735610622560,2.6441,189.44,189.4,12.07041181]
[1735610623057,3.18,189.47,189.4,12.07041181]
[1735610623454,3.18,189.47,189.33,3.18]
[1735610623658,2.6449,189.37,189.35,12.07041181]
[1735610625752,2.645,189.36,189.35,12.07041181]
[1735610625957,3.18,189.42,189.32,12.07041181]
[1735610626158,4.6528,189.41,189.32,12.07041181]
[1735610626351,2.6447,189.39,189.32,12.07041181]
[1735610626556,4.6528,189.41,189.32,12.07041181]
[1735610627463,0.81262373,189.4,189.29,12.07041181]
[1735610628167,0.81262373,189.4,189.32,12.07041181]
[1735610628665,2.6453,189.34,189.32,12.07041181]
[1735610632568,2.6455,189.33,189.32,12.07041181]
[1735610632771,3.18,189.37,189.29,12.07041181]
[1735610633168,2.6456,189.33,189.29,12.07041181]
[1735610634771,3.18,189.37,189.29,12.07041181]
[1735610635065,2.6456,189.32,189.29,12.07041181]
[1735610639375,4.6528,189.41,189.29,12.07041181]
[1735610639576,3.18,189.4,189.33,12.07041181]
[1735610640476,2.6452,189.36,189.33,12.07041181]
[1735610640971,3.18,189.4,189.33,12.07041181]
[1735610641568,2.6452,189.35,189.33,12.07041181]
[1735610641769,3.18,189.4,189.33,12.07041181]
[1735610642171,2.6453,189.35,189.33,12.07041181]
[1735610642372,3.18,189.4,189.33,12.07041181]
[1735610643668,3.18,189.4,189.29,12.07041181]
[1735610643872,0.81251301,189.39,189.29,12.07041181]
[1735610644380,2.6456,189.32,189.29,12.07041181]
[1735610645083,2.6459,189.3,189.29,12.07041181]
[1735610646673,2.6456,189.32,189.29,12.07041181]
[1735610646875,3.18,189.35,189.29,12.07041181]
[1735610648071,2.6456,189.33,189.29,12.07041181]
[1735610649480,3.18,189.35,189.29,12.07041181]
[1735610649680,26.32978533,189.41,189.32,12.07041181]
[1735610649877,26.32978533,189.41,189.36,12.07041181]
[1735610650179,2.6447,189.39,189.36,12.07041181]
[1735610650575,21.67698533,189.41,189.36,12.07041181]
[1735610650875,2.6442,189.43,189.4,12.07041181]
[1735610651684,21.93438814,189.45,189.4,12.07041181]
[1735610651872,58.42180183,189.53,189.44,12.07041181]
[1735610652071,58.42180183,189.53,189.47,12.07041181]
[1735610652888,90.17088561,189.54,189.47,12.07041181]
[1735610652889,2.53818286,189.54,189.47,12.07041181]
[1735610653584,2.6433,189.49,189.47,12.07041181]
[1735610656282,2.6431,189.5,189.47,12.07041181]
[1735610656578,2.53818286,189.54,189.49,12.07041181]
[1735610656788,2.6427,189.53,189.52,12.07041181]
[1735610658281,3.1719,189.58,189.52,12.07041181]
[1735610658479,3.18,189.59,189.52,12.07041181]
[1735610659493,2.6423,189.56,189.52,12.07041181]
[1735610659786,2.6423,189.56,189.55,12.07041181]
[1735610661886,2.6427,189.54,189.52,12.07041181]
[1735610662090,3.18,189.62,189.52,12.07041181]
[1735610662293,0.81276325,189.61,189.52,12.07041181]
[1735610662489,2.6427,189.53,189.52,12.07041181]
[1735610662693,3.18,189.57,189.49,12.07041181]
[1735610663390,2.6431,189.5,189.49,12.07041181]
[1735610663586,3.18,189.57,189.47,12.07041181]
[1735610663587,1.4805,189.56,189.47,12.07041181]
[1735610663787,0.81264382,189.55,189.47,12.07041181]
[1735610663990,2.6427,189.53,189.47,12.07041181]
[1735610664191,3.1051,189.55,189.47,12.07041181]
[1735610665500,2.6433,189.49,189.47,12.07041181]
[1735610665700,3.1051,189.55,189.47,12.07041181]
[1735610665896,0.81249997,189.54,189.47,12.07041181]
[1735610666407,2.6434,189.48,189.47,12.07041181]
[1735610666599,3.1051,189.55,189.47,12.07041181]
[1735610667397,2.6428,189.52,189.47,12.07041181]
[1735610668607,2.6428,189.52,189.5,12.07041181]
[1735610668907,2.643,189.51,189.5,12.07041181]
[1735610669099,3.16,189.54,189.47,12.07041181]
[1735610670006,2.6431,189.5,189.47,12.07041181]
[1735610672700,2.6434,189.48,189.47,12.07041181]
[1735610672904,3.16,189.54,189.45,76.17537871]
[1735610673512,3.16,189.54,189.41,3.1192]
[1735610673706,0.812777,189.53,189.43,12.07041181]
[1735610675403,2.6437,189.46,189.43,12.07041181]
[1735610676710,3.16,189.54,189.43,12.07041181]
[1735610676906,0.81254993,189.53,189.43,12.07041181]
[1735610677312,0.81254993,189.53,189.41,3.1192]
[1735610677508,2.6438,189.45,189.43,12.07041181]
[1735610679614,2.6439,189.44,189.43,12.07041181]
[1735610680315,2.6444,189.41,189.4,12.07041181]
[1735610681921,2.6448,189.38,189.37,12.07041181]
[1735610682714,3.16,189.43,189.37,12.07041181]
[1735610683012,2.6446,189.39,189.37,12.07041181]
[1735610685020,3.16,189.43,189.37,12.07041181]
[1735610685321,2.6444,189.41,189.4,12.07041181]
[1735610685915,2.6441,189.43,189.4,12.07041181]
[1735610686311,3.18,189.5,189.4,12.07041181]
[1735610686514,3.18,189.5,189.43,12.07041181]
[1735610686812,3.205,189.52,189.43,12.07041181]
[1735610687117,6.385,189.52,189.43,12.07041181]
[1735610688514,2.6437,189.46,189.43,12.07041181]
[1735610689620,6.385,189.52,189.43,12.07041181]
[1735610689823,2.6438,189.45,189.43,12.07041181]
[1735610690916,2.6439,189.44,189.43,12.07041181]
[1735610693424,3.18,189.47,189.37,3.18]
[1735610693919,2.644,189.44,189.36,13.68531181]
[1735610694119,3.18,189.47,189.36,13.68531181]
[1735610695418,0.81213803,189.46,189.36,13.68531181]
[1735610696116,2.6446,189.4,189.33,5.8254]
[1735610696322,3.16,189.42,189.32,12.07041181]
[1735610697429,3.16,189.43,189.35,12.07041181]
[1735610697926,2.6445,189.41,189.35,12.07041181]
[1735610698526,2.6446,189.4,189.35,12.07041181]
[1735610698728,3.16,189.43,189.35,12.07041181]
[1735610699119,2.6445,189.4,189.35,12.07041181]
[1735610700027,3.16,189.43,189.35,12.07041181]
[1735610700222,2.6447,189.39,189.35,12.07041181]
[1735610701327,3.16,189.43,189.35,12.07041181]
[1735610701529,3.16,189.43,189.3,5.0653]
[1735610701530,3.16,189.43,189.3,1.5234]
[1735610701727,2.9644,189.42,189.32,12.07041181]
[1735610702023,0.81179969,189.41,189.32,12.07041181]
[1735610702220,2.9644,189.42,189.32,12.07041181]
[1735610702419,2.6457,189.32,189.29,12.07041181]
[1735610703432,3.16,189.37,189.29,12.07041181]
[1735610703632,2.6457,189.31,189.29,12.07041181]
[1735610704332,3.16,189.37,189.29,12.07041181]
[1735610705132,2.6456,189.33,189.29,12.07041181]
[1735610705733,3.16,189.37,189.29,12.07041181]
[1735610705931,2.6457,189.31,189.29,12.07041181]
[1735610707233,2.6456,189.33,189.29,12.07041181]
[1735610708933,3.16,189.37,189.29,12.07041181]
[1735610709130,2.6456,189.32,189.29,12.07041181]
[1735610709329,3.16,189.37,189.29,12.07041181]
[1735610709832,2.6459,189.3,189.29,12.07041181]
[1735610710036,3.16,189.37,189.26,13.57731181]
[1735610710536,0.81254657,189.36,189.26,12.07041181]
[1735610710734,2.34074657,189.36,189.26,12.07041181]
[1735610711038,0.81249727,189.35,189.26,12.07041181]
[1735610711329,2.6463,189.27,189.26,12.07041181]
[1735610711531,3.18,189.32,189.24,80.78007652]
[1735610711736,3.18,189.32,189.2,12.07041181]
[1735610711737,0.81236845,189.31,189.2,12.07041181]
[1735610711938,2.6469,189.23,189.2,12.07041181]
[1735610712133,1.5006,189.31,189.2,12.07041181]
[1735610712343,0.81208609,189.3,189.2,12.07041181]
[1735610712530,0.81208609,189.3,189.17,12.07041181]
[1735610713040,12.07041181,189.28,189.17,12.07041181]
[1735610713242,7.07448609,189.27,189.17,12.07041181]
[1735610713539,6.2624,189.27,189.17,12.07041181]
[1735610713840,2.6476,189.18,189.17,12.07041181]
[1735610714040,6.2624,189.27,189.14,12.07041181]
[1735610714239,2.6473,189.2,189.14,12.07041181]
[1735610714543,3.18,189.23,189.14,12.07041181]
[1735610715337,3.18,189.23,189.2,12.07041181]
[1735610715540,2.6469,189.23,189.2,12.07041181]
[1735610717643,2.647,189.22,189.2,12.07041181]
[1735610718140,6.2624,189.27,189.2,12.07041181]
[1735610718547,3.18,189.29,189.2,12.07041181]
[1735610718749,2.6462,189.28,189.26,12.07041181]
[1735610718940,6.29506977,189.34,189.26,12.07041181]
[1735610720646,2.646,189.3,189.26,12.07041181]
[1735610720841,6.29506977,189.34,189.26,12.07041181]
[1735610721347,3.11506977,189.34,189.29,12.07041181]
[1735610721741,2.6458,189.31,189.29,12.07041181]
[1735610721946,3.11506977,189.34,189.29,12.07041181]
[1735610722444,3.18,189.39,189.29,12.07041181]
[1735610723650,12.07041181,189.37,189.26,12.07041181]
[1735610723849,0.8119311,189.36,189.26,12.07041181]
[1735610724946,2.6462,189.28,189.26,12.07041181]
[1735610725645,2.646,189.3,189.26,12.07041181]
[1735610726449,3.18,189.36,189.26,12.07041181]
[1735610727244,2.6463,189.28,189.26,12.07041181]
[1735610727446,3.18,189.36,189.26,12.07041181]
[1735610727754,0.81190925,189.35,189.26,12.07041181]
[1735610728249,2.6463,189.27,189.26,12.07041181]
[1735610728448,3.18,189.36,189.23,12.07041181]
[1735610728652,0.81182077,189.35,189.23,12.07041181]
[1735610728948,2.6464,189.27,189.23,12.07041181]
[1735610729451,2.6464,189.26,189.23,12.07041181]
[1735610730555,2.6463,189.28,189.23,12.07041181]
[1735610732855,3.18,189.33,189.23,12.07041181]
[1735610733156,2.6464,189.27,189.23,12.07041181]
[1735610734849,2.6464,189.27,189.21,8.7896]
[1735610735049,2.6458,189.31,189.24,12.07041181]
[1735610735256,3.18,189.33,189.24,12.07041181]
[1735610737156,4.6135,189.32,189.24,12.07041181]
[1735610737763,2.6466,189.26,189.24,12.07041181]
[1735610739171,2.6463,189.28,189.24,12.07041181]
[1735610739465,4.6135,189.32,189.24,12.07041181]
[1735610739965,2.6464,189.27,189.24,12.07041181]